[Event "*** Titled Tuesday Blitz"]
[Site "Chess.com"]
[Date "2020.04.21"]
[Round "7"]
[White "Jumbo"]
[Black "Mikhail_Biryukov"]
[Result "1-0"]
[WhiteElo "2839"]
[BlackElo "2680"]
[TimeControl "180+1"]
[EndTime "11:23:51 PDT"]
[Termination "Jumbo won by resignation"]

1. d4 {[%clk 0:03:00.9]} 1... Nf6 {[%clk 0:02:59.2]} 2. c4 {[%clk 0:03:01.5]}
2... g6 {[%clk 0:02:59.4]} 3. g3 {[%clk 0:02:59.5]} 3... c6 {[%clk 0:02:58.8]}
4. Qa4 {[%clk 0:02:54.6]} 4... Bg7 {[%clk 0:02:57.1]} 5. Nc3 {[%clk 0:02:46.5]}
5... d5 {[%clk 0:02:53.8]} 6. cxd5 {[%clk 0:02:45.9]} 6... Nxd5 {[%clk
0:02:54.3]} 7. Nf3 {[%clk 0:02:29.6]} 7... O-O {[%clk 0:02:41.2]} 8. Bg2 {[%clk
0:02:22.9]} 8... Nb6 {[%clk 0:02:38.1]} 9. Qd1 {[%clk 0:02:17.5]} 9... N8d7
{[%clk 0:02:35.3]} 10. Bf4 {[%clk 0:02:01.9]} 10... Nd5 {[%clk 0:02:26.9]} 11.
Bg5 {[%clk 0:01:59.8]} 11... h6 {[%clk 0:02:25.2]} 12. Bd2 {[%clk 0:01:59.7]}
12... N7b6 {[%clk 0:02:21.1]} 13. O-O {[%clk 0:01:55.7]} 13... Nc4 {[%clk
0:02:19.3]} 14. Bc1 {[%clk 0:01:55.6]} 14... Bg4 {[%clk 0:02:10.6]} 15. h3
{[%clk 0:01:52.8]} 15... Bxf3 {[%clk 0:01:52.7]} 16. Bxf3 {[%clk 0:01:53.7]}
16... Ndb6 {[%clk 0:01:53.1]} 17. e3 {[%clk 0:01:27.5]} 17... e5 {[%clk
0:01:51.4]} 18. d5 {[%clk 0:01:26.4]} 18... cxd5 {[%clk 0:01:43.1]} 19. Nxd5
{[%clk 0:01:26.1]} 19... Re8 {[%clk 0:01:42.7]} 20. Nc3 {[%clk 0:01:16.9]} 20...
Qc8 {[%clk 0:01:22.8]} 21. Bg2 {[%clk 0:00:58.8]} 21... Rd8 {[%clk 0:01:14.3]}
22. Qe2 {[%clk 0:00:56.9]} 22... Nd6 {[%clk 0:01:08.8]} 23. Rd1 {[%clk
0:00:52.2]} 23... Qe6 {[%clk 0:01:08.4]} 24. Bd2 {[%clk 0:00:50.3]} 24... e4
{[%clk 0:01:08]} 25. Be1 {[%clk 0:00:50.6]} 25... Rac8 {[%clk 0:01:06.9]} 26.
Rac1 {[%clk 0:00:49.6]} 26... Kh7 {[%clk 0:01:05.5]} 27. b3 {[%clk 0:00:49.7]}
27... f5 {[%clk 0:01:02.2]} 28. Nb5 {[%clk 0:00:43.7]} 28... Nxb5 {[%clk
0:00:53.1]} 29. Qxb5 {[%clk 0:00:43.6]} 29... Bb2 {[%clk 0:00:50.2]} 30. Rb1
{[%clk 0:00:42.4]} 30... Be5 {[%clk 0:00:48.8]} 31. Bf1 {[%clk 0:00:32.4]} 31...
a6 {[%clk 0:00:48.3]} 32. Qb4 {[%clk 0:00:27.2]} 32... Bf6 {[%clk 0:00:38.8]}
33. a4 {[%clk 0:00:25.2]} 33... Be7 {[%clk 0:00:38.6]} 34. Qa5 {[%clk
0:00:22.3]} 34... h5 {[%clk 0:00:28]} 35. h4 {[%clk 0:00:22]} 35... g5 {[%clk
0:00:26.9]} 36. hxg5 {[%clk 0:00:20.1]} 36... Bxg5 {[%clk 0:00:27.8]} 37. Bh3
{[%clk 0:00:20.3]} 37... Nd5 {[%clk 0:00:24.9]} 38. Rd4 {[%clk 0:00:15.6]} 38...
Bf6 {[%clk 0:00:19.3]} 39. Rc4 {[%clk 0:00:14]} 39... h4 {[%clk 0:00:18.6]} 40.
gxh4 {[%clk 0:00:11.4]} 40... Bxh4 {[%clk 0:00:17.4]} 41. Rxc8 {[%clk
0:00:11.2]} 41... Rxc8 {[%clk 0:00:17.3]} 42. Rd1 {[%clk 0:00:11.6]} 42... Rg8+
{[%clk 0:00:17.1]} 43. Kf1 {[%clk 0:00:11.9]} 43... Ne7 {[%clk 0:00:17.1]} 44.
Qc7 {[%clk 0:00:11]} 44... Qg6 {[%clk 0:00:16.9]} 45. Rd7 {[%clk 0:00:08.9]}
45... Rg7 {[%clk 0:00:16.6]} 46. Qe5 {[%clk 0:00:06.9]} 46... Qh5 {[%clk
0:00:15.6]} 47. Rxe7 {[%clk 0:00:03.9]} 47... Rxe7 {[%clk 0:00:14.5]} 48. Bxf5+
{[%clk 0:00:04.4]} 48... Kg8 {[%clk 0:00:13.4]} 49. Qb8+ {[%clk 0:00:03.7]}
49... Qe8 {[%clk 0:00:11.7]} 50. Qf4 {[%clk 0:00:02.5]} 50... Qf7 {[%clk
0:00:11]} 51. Qg4+ {[%clk 0:00:01.6]} 51... Kf8 {[%clk 0:00:08.8]} 52. Bb4
{[%clk 0:00:01.9]} 52... Bf6 {[%clk 0:00:09]} 53. Bxe4 {[%clk 0:00:01.2]} 53...
Qe6 {[%clk 0:00:08.4]} 54. Bxe7+ {[%clk 0:00:01.5]} 54... Qxe7 {[%clk
0:00:08.1]} 55. Qc8+ {[%clk 0:00:01.5]} 55... Kg7 {[%clk 0:00:08]} 56. Qxb7
{[%clk 0:00:02.4]} 56... Qxb7 {[%clk 0:00:07.9]} 57. Bxb7 {[%clk 0:00:03.3]}
57... a5 {[%clk 0:00:08.8]} 58. Ke2 {[%clk 0:00:02.8]} 58... Bc3 {[%clk
0:00:09.4]} 59. Kd3 {[%clk 0:00:03.3]} 59... Be1 {[%clk 0:00:09.7]} 60. f4
{[%clk 0:00:04.2]} 60... Kf6 {[%clk 0:00:09.2]} 61. Bd5 {[%clk 0:00:05.1]} 61...
Bf2 {[%clk 0:00:09.2]} 62. Ke4 {[%clk 0:00:06]} 62... Be1 {[%clk 0:00:08.6]} 63.
Kf3 {[%clk 0:00:06.5]} 63... Bd2 {[%clk 0:00:09]} 64. Bc4 {[%clk 0:00:07.1]}
64... Ke7 {[%clk 0:00:09.3]} 65. e4 {[%clk 0:00:07.7]} 65... Kf6 {[%clk
0:00:08.8]} 66. e5+ {[%clk 0:00:08.1]} 66... Kf5 {[%clk 0:00:09.1]} 67. Bd3+
{[%clk 0:00:08.7]} 67... Ke6 {[%clk 0:00:09.5]} 68. Ke4 {[%clk 0:00:09.4]} 68...
Bc1 {[%clk 0:00:09.2]} 69. Bc4+ {[%clk 0:00:10]} 69... Ke7 {[%clk 0:00:10.1]}
70. f5 {[%clk 0:00:10.6]} 70... Bb2 {[%clk 0:00:10.3]} 71. f6+ {[%clk 0:00:11]}
71... Kf8 {[%clk 0:00:10.2]} 72. Kf5 {[%clk 0:00:11.6]} 72... Ba1 {[%clk
0:00:09.8]} 73. e6 {[%clk 0:00:12.1]} 73... Ke8 {[%clk 0:00:10.4]} 74. Bb5+
{[%clk 0:00:11.7]} 1-0

[Event "*** Titled Tuesday Blitz"]
[Site "Chess.com"]
[Date "2020.04.21"]
[Round "7"]
[White "Fh2411"]
[Black "hongnhung1234"]
[Result "1-0"]
[WhiteElo "2467"]
[BlackElo "2169"]
[TimeControl "180+1"]
[EndTime "11:23:51 PDT"]
[Termination "Fh2411 won by checkmate"]

1. d4 {[%clk 0:03:00.9]} 1... f5 {[%clk 0:02:52.2]} 2. Nf3 {[%clk 0:03:01.8]}
2... Nf6 {[%clk 0:02:51.2]} 3. g3 {[%clk 0:03:02.2]} 3... g6 {[%clk 0:02:51.4]}
4. Bg2 {[%clk 0:03:03.1]} 4... Bg7 {[%clk 0:02:51.7]} 5. O-O {[%clk 0:03:04]}
5... O-O {[%clk 0:02:52.3]} 6. c4 {[%clk 0:03:04.9]} 6... d6 {[%clk 0:02:52.7]}
7. Nc3 {[%clk 0:03:05.2]} 7... Qe8 {[%clk 0:02:53]} 8. d5 {[%clk 0:03:02.3]}
8... c6 {[%clk 0:02:52.2]} 9. Nd4 {[%clk 0:03:00.2]} 9... Bd7 {[%clk 0:02:51.1]}
10. b3 {[%clk 0:02:46.6]} 10... Na6 {[%clk 0:02:49.4]} 11. Bb2 {[%clk 0:02:46]}
11... Nc7 {[%clk 0:02:49.4]} 12. dxc6 {[%clk 0:02:42.9]} 12... bxc6 {[%clk
0:02:50.3]} 13. Qd2 {[%clk 0:02:24]} 13... Rd8 {[%clk 0:02:41]} 14. Nf3 {[%clk
0:01:51.4]} 14... Bc8 {[%clk 0:02:25.4]} 15. Na4 {[%clk 0:01:48.2]} 15... e5
{[%clk 0:02:07.3]} 16. Qa5 {[%clk 0:01:46]} 16... Qe7 {[%clk 0:02:00.8]} 17.
Qxa7 {[%clk 0:01:44.6]} 17... f4 {[%clk 0:01:50.8]} 18. Rad1 {[%clk 0:01:34.1]}
18... h6 {[%clk 0:01:17.2]} 19. c5 {[%clk 0:01:28.5]} 19... dxc5 {[%clk
0:01:04.8]} 20. Bxe5 {[%clk 0:01:25.7]} 20... Nfd5 {[%clk 0:00:50.4]} 21. Bxc7
{[%clk 0:01:10.6]} 21... Qxc7 {[%clk 0:00:48]} 22. Qxc7 {[%clk 0:01:10.1]} 22...
Nxc7 {[%clk 0:00:48.9]} 23. Nxc5 {[%clk 0:01:10.1]} 23... Nd5 {[%clk 0:00:44.6]}
24. Na4 {[%clk 0:00:55.4]} 24... Ba6 {[%clk 0:00:42.5]} 25. Rfe1 {[%clk
0:00:53.1]} 25... Rfe8 {[%clk 0:00:39.5]} 26. Rc1 {[%clk 0:00:48.8]} 26... Bxe2
{[%clk 0:00:23.7]} 27. Rxc6 {[%clk 0:00:38]} 27... Nb4 {[%clk 0:00:22.8]} 28.
Rc7 {[%clk 0:00:31.8]} 28... Nd3 {[%clk 0:00:20]} 29. Rb1 {[%clk 0:00:28.3]}
29... g5 {[%clk 0:00:19.8]} 30. Nc5 {[%clk 0:00:24.4]} 30... Nxc5 {[%clk
0:00:17.6]} 31. Rxc5 {[%clk 0:00:25.3]} 31... Rd3 {[%clk 0:00:17.1]} 32. Ne1
{[%clk 0:00:23.9]} 32... Rd2 {[%clk 0:00:17.4]} 33. Bf1 {[%clk 0:00:20.8]} 33...
Rxa2 {[%clk 0:00:16.4]} 34. Nd3 {[%clk 0:00:16.1]} 34... Bd4 {[%clk 0:00:12.5]}
35. Rcc1 {[%clk 0:00:10.6]} 35... Bxd3 {[%clk 0:00:11.8]} 36. Bxd3 {[%clk
0:00:11.5]} 36... Rxf2 {[%clk 0:00:11.9]} 37. Kh1 {[%clk 0:00:11.9]} 37... Rd2
{[%clk 0:00:11.9]} 38. Rd1 {[%clk 0:00:11.7]} 38... Rxd1+ {[%clk 0:00:10.8]} 39.
Rxd1 {[%clk 0:00:12.6]} 39... Bc5 {[%clk 0:00:10.1]} 40. Bc4+ {[%clk 0:00:12.2]}
40... Kf8 {[%clk 0:00:10.3]} 41. gxf4 {[%clk 0:00:13.1]} 41... gxf4 {[%clk
0:00:10]} 42. Kg2 {[%clk 0:00:14]} 42... Re3 {[%clk 0:00:09.1]} 43. Rf1 {[%clk
0:00:13]} 43... Bd6 {[%clk 0:00:08.3]} 44. Rf3 {[%clk 0:00:12.4]} 44... Re1
{[%clk 0:00:06.5]} 45. Kh3 {[%clk 0:00:12]} 45... Rb1 {[%clk 0:00:06.4]} 46. Kg4
{[%clk 0:00:12.3]} 46... Ke7 {[%clk 0:00:06.9]} 47. h3 {[%clk 0:00:12.4]} 47...
Rg1+ {[%clk 0:00:07.2]} 48. Kh5 {[%clk 0:00:11.6]} 48... Rg3 {[%clk 0:00:08.1]}
49. Bd5 {[%clk 0:00:10.7]} 49... Rxf3 {[%clk 0:00:07.5]} 50. Bxf3 {[%clk
0:00:11.6]} 50... Kf6 {[%clk 0:00:07.7]} 51. Kxh6 {[%clk 0:00:12.1]} 51... Ke5
{[%clk 0:00:08.6]} 52. Kg6 {[%clk 0:00:09.8]} 52... Bb4 {[%clk 0:00:09.5]} 53.
h4 {[%clk 0:00:10]} 53... Kd4 {[%clk 0:00:09.6]} 54. h5 {[%clk 0:00:10.9]} 54...
Ke3 {[%clk 0:00:10]} 55. Bc6 {[%clk 0:00:10.4]} 55... f3 {[%clk 0:00:09.4]} 56.
h6 {[%clk 0:00:08.8]} 56... f2 {[%clk 0:00:09.2]} 57. Bb5 {[%clk 0:00:09.5]}
57... Kd2 {[%clk 0:00:09]} 58. h7 {[%clk 0:00:09.4]} 58... Bc3 {[%clk
0:00:09.3]} 59. Bf1 {[%clk 0:00:08.1]} 59... Kc2 {[%clk 0:00:09]} 60. b4 {[%clk
0:00:08]} 60... Kd1 {[%clk 0:00:06.8]} 61. b5 {[%clk 0:00:08.3]} 61... Ke1
{[%clk 0:00:07.2]} 62. Bh3 {[%clk 0:00:08.2]} 62... Bd4 {[%clk 0:00:04.9]} 63.
b6 {[%clk 0:00:08.2]} 63... f1=Q {[%clk 0:00:03.5]} 64. Bxf1 {[%clk 0:00:07.4]}
64... Kxf1 {[%clk 0:00:04.4]} 65. b7 {[%clk 0:00:07.7]} 65... Be5 {[%clk
0:00:04.3]} 66. b8=Q {[%clk 0:00:07.9]} 66... Bxb8 {[%clk 0:00:04.6]} 67. h8=Q
{[%clk 0:00:08.2]} 67... Bg3 {[%clk 0:00:04.9]} 68. Kf5 {[%clk 0:00:07.3]} 68...
Bf2 {[%clk 0:00:04.8]} 69. Qh3+ {[%clk 0:00:07.5]} 69... Ke2 {[%clk 0:00:05.2]}
70. Ke4 {[%clk 0:00:08.4]} 70... Ke1 {[%clk 0:00:04.3]} 71. Kd3 {[%clk 0:00:08]}
71... Bg1 {[%clk 0:00:02.6]} 72. Qg2 {[%clk 0:00:06.7]} 72... Bf2 {[%clk
0:00:02.3]} 73. Qh1+ {[%clk 0:00:06.9]} 73... Bg1 {[%clk 0:00:01.7]} 74. Qxg1#
{[%clk 0:00:07.4]} 1-0

[Event "*** Titled Tuesday Blitz"]
[Site "Chess.com"]
[Date "2020.04.21"]
[Round "7"]
[White "Gahan-MG"]
[Black "Azatnew"]
[Result "0-1"]
[WhiteElo "2604"]
[BlackElo "2784"]
[TimeControl "180+1"]
[EndTime "11:24:01 PDT"]
[Termination "Azatnew won by resignation"]

1. e4 {[%clk 0:03:00.9]} 1... e6 {[%clk 0:02:58.8]} 2. b3 {[%clk 0:03:00.7]}
2... d5 {[%clk 0:02:59.1]} 3. Bb2 {[%clk 0:03:00.7]} 3... dxe4 {[%clk
0:02:57.2]} 4. Nc3 {[%clk 0:03:00.7]} 4... Nf6 {[%clk 0:02:57.2]} 5. g4 {[%clk
0:03:00.8]} 5... h6 {[%clk 0:02:53.9]} 6. Bg2 {[%clk 0:03:00.8]} 6... Be7 {[%clk
0:02:38.5]} 7. Qe2 {[%clk 0:03:00.4]} 7... Nc6 {[%clk 0:02:38.3]} 8. Nxe4 {[%clk
0:03:00.2]} 8... Nxe4 {[%clk 0:02:23.9]} 9. Bxe4 {[%clk 0:03:01.1]} 9... Nd4
{[%clk 0:02:18.4]} 10. Qd3 {[%clk 0:03:00.8]} 10... Bf6 {[%clk 0:02:18.3]} 11.
O-O-O {[%clk 0:02:59]} 11... a5 {[%clk 0:01:34]} 12. h4 {[%clk 0:02:53.8]} 12...
Nc6 {[%clk 0:01:09.7]} 13. Bxc6+ {[%clk 0:02:31.5]} 13... bxc6 {[%clk
0:01:10.6]} 14. Qxd8+ {[%clk 0:02:30.3]} 14... Kxd8 {[%clk 0:01:11.5]} 15. d4
{[%clk 0:02:19.4]} 15... Ke7 {[%clk 0:01:10.3]} 16. Nf3 {[%clk 0:02:18.6]} 16...
g6 {[%clk 0:01:02.1]} 17. g5 {[%clk 0:02:17.2]} 17... Bg7 {[%clk 0:01:01.6]} 18.
Ba3+ {[%clk 0:02:10.7]} 18... Ke8 {[%clk 0:01:01.3]} 19. h5 {[%clk 0:02:01]}
19... gxh5 {[%clk 0:00:45.2]} 20. Rxh5 {[%clk 0:02:00.3]} 20... a4 {[%clk
0:00:45.4]} 21. Kb2 {[%clk 0:01:54.3]} 21... hxg5 {[%clk 0:00:24.8]} 22. Rxg5
{[%clk 0:01:44.1]} 22... Bf6 {[%clk 0:00:24.2]} 23. Rg3 {[%clk 0:01:37.7]} 23...
Ba6 {[%clk 0:00:24]} 24. Rdg1 {[%clk 0:01:36.6]} 24... Kd7 {[%clk 0:00:24.5]}
25. Ne5+ {[%clk 0:01:27]} 25... Bxe5 {[%clk 0:00:24.5]} 26. dxe5 {[%clk
0:01:27.9]} 26... Rh5 {[%clk 0:00:20]} 27. Rf3 {[%clk 0:00:51]} 27... Rh7 {[%clk
0:00:19.9]} 28. Rf4 {[%clk 0:00:47.4]} 28... axb3 {[%clk 0:00:19.8]} 29. axb3
{[%clk 0:00:47.9]} 29... Rd8 {[%clk 0:00:20.1]} 30. Ra1 {[%clk 0:00:39.1]} 30...
Bb7 {[%clk 0:00:18.9]} 31. Rb4 {[%clk 0:00:33.2]} 31... Kc8 {[%clk 0:00:19.1]}
32. Rf4 {[%clk 0:00:29.2]} 32... Rd2 {[%clk 0:00:18.5]} 33. Bb4 {[%clk
0:00:24.5]} 33... Re2 {[%clk 0:00:18.4]} 34. Bc3 {[%clk 0:00:25]} 34... c5
{[%clk 0:00:18.3]} 35. Re1 {[%clk 0:00:15.2]} 35... Rxe1 {[%clk 0:00:18]} 36.
Bxe1 {[%clk 0:00:16.1]} 36... Bd5 {[%clk 0:00:18.6]} 37. Bc3 {[%clk 0:00:14.2]}
37... Kb7 {[%clk 0:00:19]} 38. Rf6 {[%clk 0:00:12.8]} 38... Kc6 {[%clk
0:00:19.3]} 39. Rf4 {[%clk 0:00:13]} 39... Kd7 {[%clk 0:00:19.3]} 40. Ra4 {[%clk
0:00:11.6]} 40... Rh2 {[%clk 0:00:19.5]} 41. Rf4 {[%clk 0:00:09.8]} 41... Ke7
{[%clk 0:00:19.6]} 42. b4 {[%clk 0:00:09.6]} 42... c4 {[%clk 0:00:18.8]} 43. Bd4
{[%clk 0:00:09.1]} 43... Rh1 {[%clk 0:00:18.6]} 44. b5 {[%clk 0:00:09.1]} 44...
Re1 {[%clk 0:00:17.8]} 45. b6 {[%clk 0:00:08.3]} 45... cxb6 {[%clk 0:00:17.9]}
46. Bxb6 {[%clk 0:00:09.2]} 46... Rxe5 {[%clk 0:00:18.1]} 47. Bc5+ {[%clk
0:00:09.4]} 47... Ke8 {[%clk 0:00:18.6]} 48. Bd4 {[%clk 0:00:09.3]} 48... Re2
{[%clk 0:00:18.9]} 49. Be3 {[%clk 0:00:06.3]} 49... f5 {[%clk 0:00:18.7]} 50.
Rd4 {[%clk 0:00:05.6]} 50... Kd7 {[%clk 0:00:18.1]} 51. Rd2 {[%clk 0:00:05.8]}
51... Re1 {[%clk 0:00:18.1]} 52. Kc3 {[%clk 0:00:05.6]} 52... Kc6 {[%clk
0:00:18.2]} 53. Kd4 {[%clk 0:00:05.6]} 53... Ra1 {[%clk 0:00:18]} 54. Ke5 {[%clk
0:00:05.3]} 54... Kb5 {[%clk 0:00:18.1]} 55. Bd4 {[%clk 0:00:03.3]} 55... Re1+
{[%clk 0:00:18.2]} 56. Be3 {[%clk 0:00:03]} 56... Kb4 {[%clk 0:00:17.4]} 57. Kd4
{[%clk 0:00:03.9]} 57... Rb1 {[%clk 0:00:16.2]} 58. c3+ {[%clk 0:00:04.4]} 58...
Kb5 {[%clk 0:00:16.7]} 59. Ke5 {[%clk 0:00:04.6]} 59... Ka4 {[%clk 0:00:16.6]}
60. Bd4 {[%clk 0:00:05.5]} 60... Kb3 {[%clk 0:00:17.1]} 61. Re2 {[%clk 0:00:06]}
61... Rd1 {[%clk 0:00:17.1]} 62. Re3 {[%clk 0:00:06.4]} 62... Rd2 {[%clk
0:00:16.9]} 63. f4 {[%clk 0:00:06.8]} 63... Rh2 {[%clk 0:00:15.8]} 64. Re1
{[%clk 0:00:06.9]} 64... Kb2 {[%clk 0:00:14.9]} 65. Re3 {[%clk 0:00:06.8]} 65...
Rg2 {[%clk 0:00:15.2]} 66. Re1 {[%clk 0:00:07]} 66... Kc2 {[%clk 0:00:15.5]} 67.
Ra1 {[%clk 0:00:07]} 67... Re2+ {[%clk 0:00:15.5]} 68. Kd6 {[%clk 0:00:06.8]}
68... Re4 {[%clk 0:00:16.4]} 69. Be5 {[%clk 0:00:06.6]} 69... Kd3 {[%clk
0:00:16.7]} 70. Rd1+ {[%clk 0:00:06.8]} 70... Kc2 {[%clk 0:00:17.1]} 71. Rd4
{[%clk 0:00:06.6]} 71... Re3 {[%clk 0:00:17.2]} 72. Kc5 {[%clk 0:00:03.8]} 72...
Rxc3 {[%clk 0:00:16]} 73. Rxd5 {[%clk 0:00:04]} 73... exd5 {[%clk 0:00:15.5]}
74. Bxc3 {[%clk 0:00:04]} 74... Kxc3 {[%clk 0:00:16.4]} 75. Kxd5 {[%clk
0:00:04.9]} 75... Kd3 {[%clk 0:00:16.6]} 76. Ke5 {[%clk 0:00:05.8]} 76... c3
{[%clk 0:00:17.5]} 77. Kxf5 {[%clk 0:00:06.7]} 77... c2 {[%clk 0:00:18.4]} 78.
Kf6 {[%clk 0:00:07.6]} 78... c1=Q {[%clk 0:00:19.3]} 79. Kf5 {[%clk 0:00:08.5]}
79... Ke3 {[%clk 0:00:19.1]} 80. Kg5 {[%clk 0:00:09.4]} 80... Qc5+ {[%clk
0:00:19.4]} 81. f5 {[%clk 0:00:10.2]} 81... Ke4 {[%clk 0:00:20.1]} 82. Kg6
{[%clk 0:00:10.7]} 82... Qxf5+ {[%clk 0:00:21]} 0-1

[Event "*** Titled Tuesday Blitz"]
[Site "Chess.com"]
[Date "2020.04.21"]
[Round "7"]
[White "SCIM"]
[Black "almaguerjm"]
[Result "1/2-1/2"]
[WhiteElo "2539"]
[BlackElo "2357"]
[TimeControl "180+1"]
[EndTime "11:24:02 PDT"]
[Termination "Game drawn by stalemate"]

1. d4 {[%clk 0:03:00.9]} 1... Nf6 {[%clk 0:02:58.2]} 2. c4 {[%clk 0:03:01]} 2...
c5 {[%clk 0:02:53.2]} 3. d5 {[%clk 0:03:00.6]} 3... e6 {[%clk 0:02:49.1]} 4. Nc3
{[%clk 0:02:59.7]} 4... exd5 {[%clk 0:02:48.9]} 5. cxd5 {[%clk 0:03:00.6]} 5...
d6 {[%clk 0:02:48.5]} 6. e4 {[%clk 0:03:01]} 6... g6 {[%clk 0:02:48.4]} 7. Nge2
{[%clk 0:03:01.4]} 7... Bg7 {[%clk 0:02:47.7]} 8. Ng3 {[%clk 0:03:00.5]} 8...
O-O {[%clk 0:02:47.1]} 9. Be2 {[%clk 0:02:59.8]} 9... h5 {[%clk 0:02:43]} 10.
Bg5 {[%clk 0:02:58.2]} 10... Bd7 {[%clk 0:02:32.5]} 11. O-O {[%clk 0:02:49.9]}
11... Re8 {[%clk 0:02:26.4]} 12. f3 {[%clk 0:02:43.6]} 12... Qb6 {[%clk
0:02:24.4]} 13. Qd2 {[%clk 0:02:36.6]} 13... Nh7 {[%clk 0:02:22.2]} 14. Be3
{[%clk 0:02:28.7]} 14... Na6 {[%clk 0:02:15.8]} 15. Nh1 {[%clk 0:02:24.2]} 15...
Bd4 {[%clk 0:02:10.4]} 16. Nf2 {[%clk 0:02:18.3]} 16... Bxe3 {[%clk 0:02:08.9]}
17. Qxe3 {[%clk 0:02:16.6]} 17... Rac8 {[%clk 0:01:58.7]} 18. b3 {[%clk
0:02:05.6]} 18... Qa5 {[%clk 0:01:47.4]} 19. a4 {[%clk 0:01:56.8]} 19... Nb4
{[%clk 0:01:41.2]} 20. Rac1 {[%clk 0:01:50.2]} 20... Qd8 {[%clk 0:01:34.7]} 21.
Qd2 {[%clk 0:01:39.8]} 21... Qf6 {[%clk 0:01:21.5]} 22. Bb5 {[%clk 0:01:29.9]}
22... Bxb5 {[%clk 0:01:17.8]} 23. Nxb5 {[%clk 0:01:30.8]} 23... a6 {[%clk
0:01:17.4]} 24. Na3 {[%clk 0:01:24]} 24... Nf8 {[%clk 0:00:59.5]} 25. Nc4 {[%clk
0:01:17.3]} 25... Nd7 {[%clk 0:00:58.4]} 26. Kh1 {[%clk 0:01:11.2]} 26... b5
{[%clk 0:00:55.9]} 27. Ne3 {[%clk 0:00:55.7]} 27... Nb6 {[%clk 0:00:44.1]} 28.
a5 {[%clk 0:00:52.6]} 28... Nd7 {[%clk 0:00:40.8]} 29. Rfe1 {[%clk 0:00:37.4]}
29... Ne5 {[%clk 0:00:37.4]} 30. Nf1 {[%clk 0:00:35]} 30... Kg7 {[%clk
0:00:27.1]} 31. h3 {[%clk 0:00:31.9]} 31... Qd8 {[%clk 0:00:23.6]} 32. f4 {[%clk
0:00:24.9]} 32... Nd7 {[%clk 0:00:20.5]} 33. Ne3 {[%clk 0:00:20.6]} 33... Nf6
{[%clk 0:00:19.1]} 34. e5 {[%clk 0:00:16.6]} 34... dxe5 {[%clk 0:00:19.3]} 35.
f5 {[%clk 0:00:12.7]} 35... Nfxd5 {[%clk 0:00:18.4]} 36. fxg6 {[%clk 0:00:12.8]}
36... fxg6 {[%clk 0:00:18.6]} 37. Ne4 {[%clk 0:00:12.9]} 37... Nf4 {[%clk
0:00:17.9]} 38. Qf2 {[%clk 0:00:09.2]} 38... Nbd3 {[%clk 0:00:18.2]} 39. Qg3
{[%clk 0:00:08.8]} 39... Nxe1 {[%clk 0:00:16]} 40. Rxe1 {[%clk 0:00:08.6]} 40...
Rf8 {[%clk 0:00:14.6]} 41. Rd1 {[%clk 0:00:07]} 41... Qe7 {[%clk 0:00:14.8]} 42.
Nd6 {[%clk 0:00:04.8]} 42... Rcd8 {[%clk 0:00:15.1]} 43. Ndf5+ {[%clk
0:00:04.9]} 43... Kf7 {[%clk 0:00:15]} 44. Nxe7 {[%clk 0:00:04.5]} 44... Kxe7
{[%clk 0:00:15.9]} 45. Rxd8 {[%clk 0:00:03.5]} 45... Rxd8 {[%clk 0:00:16.8]} 46.
Qg5+ {[%clk 0:00:03.9]} 46... Kd7 {[%clk 0:00:14.2]} 47. Qxe5 {[%clk 0:00:04.1]}
47... Ne6 {[%clk 0:00:14.3]} 48. Qd5+ {[%clk 0:00:03.9]} 48... Ke7 {[%clk
0:00:14.8]} 49. Qe5 {[%clk 0:00:04.5]} 49... Rd4 {[%clk 0:00:13.3]} 50. Nd5+
{[%clk 0:00:04.6]} 50... Kd7 {[%clk 0:00:13.8]} 51. Nf6+ {[%clk 0:00:04.8]}
51... Ke7 {[%clk 0:00:14]} 52. Nd5+ {[%clk 0:00:05.1]} 52... Kd7 {[%clk
0:00:14]} 53. Nb6+ {[%clk 0:00:03.8]} 53... Ke7 {[%clk 0:00:14]} 54. Kh2 {[%clk
0:00:04.7]} 54... h4 {[%clk 0:00:14.1]} 55. Qh8 {[%clk 0:00:04.3]} 55... g5
{[%clk 0:00:13.4]} 56. Qh7+ {[%clk 0:00:04.8]} 56... Kf6 {[%clk 0:00:13.6]} 57.
Qb7 {[%clk 0:00:05.3]} 57... Kf5 {[%clk 0:00:14]} 58. Qxa6 {[%clk 0:00:05.3]}
58... b4 {[%clk 0:00:13.6]} 59. Qf1+ {[%clk 0:00:04.9]} 59... Nf4 {[%clk
0:00:14]} 60. Nc4 {[%clk 0:00:05]} 60... Ke4 {[%clk 0:00:13]} 61. Qe1+ {[%clk
0:00:04.2]} 61... Kd5 {[%clk 0:00:13.4]} 62. Qf1 {[%clk 0:00:04.9]} 62... Re4
{[%clk 0:00:12.7]} 63. Qf3 {[%clk 0:00:05.4]} 63... Kd4 {[%clk 0:00:11.8]} 64.
Nd2 {[%clk 0:00:06]} 64... Re2 {[%clk 0:00:12.1]} 65. Nf1 {[%clk 0:00:04.8]}
65... Rxg2+ {[%clk 0:00:12.3]} 66. Qxg2 {[%clk 0:00:05.7]} 66... Nxg2 {[%clk
0:00:11.7]} 67. Kxg2 {[%clk 0:00:06.6]} 67... c4 {[%clk 0:00:12.2]} 68. a6
{[%clk 0:00:07.5]} 68... cxb3 {[%clk 0:00:12.5]} 69. a7 {[%clk 0:00:07.8]} 69...
Kc3 {[%clk 0:00:11.2]} 70. Nd2 {[%clk 0:00:08.7]} 70... Kxd2 {[%clk 0:00:11]}
71. a8=Q {[%clk 0:00:07.9]} 71... b2 {[%clk 0:00:11.9]} 72. Qd8+ {[%clk
0:00:08.5]} 72... Kc1 {[%clk 0:00:11.9]} 73. Qc7+ {[%clk 0:00:09.1]} 73... Kd2
{[%clk 0:00:11.7]} 74. Qd6+ {[%clk 0:00:09.4]} 74... Kc1 {[%clk 0:00:12.2]} 75.
Qc5+ {[%clk 0:00:09.6]} 75... Kd1 {[%clk 0:00:11.6]} 76. Qd4+ {[%clk 0:00:09.7]}
76... Kc2 {[%clk 0:00:10.6]} 77. Qc4+ {[%clk 0:00:09.7]} 77... Kd2 {[%clk
0:00:11.1]} 78. Qb3 {[%clk 0:00:09.5]} 78... Kc1 {[%clk 0:00:10.8]} 79. Qe3+
{[%clk 0:00:09.8]} 79... Kc2 {[%clk 0:00:10.9]} 80. Qe2+ {[%clk 0:00:10.2]}
80... Kc1 {[%clk 0:00:11.4]} 81. Qe1+ {[%clk 0:00:09.6]} 81... Kc2 {[%clk
0:00:11.9]} 82. Qxb4 {[%clk 0:00:09.6]} 82... b1=Q {[%clk 0:00:11.7]} 83. Qxb1+
{[%clk 0:00:10]} 83... Kxb1 {[%clk 0:00:12.5]} 84. Kf3 {[%clk 0:00:10.6]} 84...
Kc2 {[%clk 0:00:13]} 85. Kg4 {[%clk 0:00:11.5]} 85... Kd3 {[%clk 0:00:12.8]} 86.
Kxg5 {[%clk 0:00:12]} 86... Ke4 {[%clk 0:00:13.5]} 87. Kxh4 {[%clk 0:00:12.6]}
87... Ke5 {[%clk 0:00:14.1]} 88. Kh5 {[%clk 0:00:13.5]} 88... Kf6 {[%clk
0:00:14.7]} 89. Kh6 {[%clk 0:00:13.9]} 89... Kf7 {[%clk 0:00:15.1]} 90. Kh7
{[%clk 0:00:14.3]} 90... Kf6 {[%clk 0:00:15.5]} 91. h4 {[%clk 0:00:14.4]} 91...
Kf7 {[%clk 0:00:15.1]} 92. h5 {[%clk 0:00:14.9]} 92... Kf8 {[%clk 0:00:15.5]}
93. Kg6 {[%clk 0:00:14.9]} 93... Kg8 {[%clk 0:00:15.8]} 94. h6 {[%clk
0:00:15.8]} 94... Kh8 {[%clk 0:00:16.4]} 95. h7 {[%clk 0:00:16.7]} 1/2-1/2